Cogmind - Beta 17 @@@ ROGUE MODE // 2026.06.27 @ 21:39:15 Player: Jay Result: Destroyed by G-34 Mercenary with Small Laser Performance ------------- Evolutions (1) 500 Regions Visited (3) 600 Robots Destroyed (20) 100 Value Destroyed (639) 639 Prototype IDs (0) 0 Alien Tech Used (0) 0 Bonus (0) 0 TOTAL SCORE: 1839 Bonus ------- None Cogmind --------- Core Integrity 0/400 Matter 268/300 Energy 415/415 System Corruption 5% Temperature Hot (206) Movement Walking (175) Ox1 Location -9/Materials Parts ------- > --- POWER (1) -------- Improved Ion Engine > --- PROPULSION (3) --- Aluminum Leg Aluminum Leg Aluminum Leg > --- UTILITY (2) ------ High-capacity Storage Unit Medium Battery > --- WEAPON (3) ------- Beam Rifle Autogun Grenade Launcher > --- INVENTORY (20) --- Ion Engine Ion Engine Light Ion Engine Light Ion Engine Aluminum Leg Aluminum Leg Aluminum Leg Heat Sink Heat Sink Heat Sink Small Storage Unit Advanced Weight Redist. System Improved Terrain Scanner Advanced Targeting Computer Medium Armor Plating System Shield Field Recycling Unit (0) Particle Gun Rocket Launcher Peak State ------------ > --- POWER ------------ Improved Ion Engine > --- PROPULSION ------- Aluminum Leg Aluminum Leg Aluminum Leg > --- UTILITY ---------- High-capacity Storage Unit Medium Battery > --- WEAPON ----------- Beam Rifle Autogun Grenade Launcher > --- INVENTORY -------- Ion Engine Ion Engine Light Ion Engine Light Ion Engine Aluminum Leg Aluminum Leg Aluminum Leg Heat Sink Heat Sink Heat Sink Small Storage Unit Advanced Weight Redist. System Improved Terrain Scanner Medium Armor Plating System Shield Field Recycling Unit Small Laser Small Laser Particle Gun Rocket Launcher [Rating: 15] Favorites ----------- Power Ion Engine Engine Ion Engine Propulsion Aluminum Leg Treads Light Treads Leg Aluminum Leg Utility High-capacity Storage Unit Device Improved Terrain Scanner Storage High-capacity Storage Unit Protection Medium Armor Plating Weapon Light Assault Rifle Energy Gun Small Laser Ballistic Gun Light Assault Rifle Launcher Grenade Launcher Build | -11 -10 -10 -9 ------- Run | Yrd Mat Min Mat Slots Evolved 2 | . . . 2 Power . | . . . . Propulsion 1 | . . . 1 Utility . | . . . . Weapon 1 | . . . 1 Parts Attached 23 | 7 1 1 14 Power 3 | 1 . . 2 Engine 3 | 1 . . 2 Core . | . . . . Reactor . | . . . . Propulsion 8 | 2 . . 6 Treads 2 | 2 . . . Leg 6 | . . . 6 Wheel . | . . . . Hover . | . . . . Flight . | . . . . Utility 5 | 2 1 1 1 Device 1 | 1 . . . Storage 3 | 1 . 1 1 Processor . | . . . . Hackware . | . . . . Protection 1 | . 1 . . Artifact . | . . . . Weapon 7 | 2 . . 5 Energy Gun 4 | 1 . . 3 Energy Cannon . | . . . . Ballistic Gun 2 | 1 . . 1 Ballistic Cannon . | . . . . Launcher 1 | . . . 1 Special Weapon . | . . . . Impact Weapon . | . . . . Slashing Weapon . | . . . . Piercing Weapon . | . . . . Special Melee Weapon . | . . . . Unidentified Prototypes . | . . . . Parts Lost 9 | . . . 9 Power 2 | . . . 2 Propulsion 3 | . . . 3 Utility 1 | . . . 1 Weapon 3 | . . . 3 Highest Loss Streak 7 | . . . 7 To Critical Strikes . | . . . . Average Backups 9 | 2 5 8 12 Power 2 | . 2 2 2 Propulsion 1 | . . 1 1 Utility 2 | . . 1 4 Weapon 3 | 1 2 3 4 Tool/Special . | . . . . Unused Backups 19 | . . . 19 Power 4 | . . . 4 Propulsion 3 | . . . 3 Utility 8 | . . . 8 Weapon 4 | . . . 4 Tool/Special . | . . . . Average Slot Usage (%) 96 | . 100 100 93 Engine 11 | . 14 14 10 Treads 13 | . 28 28 2 Leg 15 | . . . 27 Storage 14 | . 14 14 15 Protection 8 | . 11 14 5 Energy Gun 14 | . 14 14 15 Ballistic Gun 12 | . 14 14 11 Launcher 2 | . . . 4 Peak Build Rating 15 | 9 9 9 15 Average Rating 10 | 4 8 8 11 On Entrance 6 | . 9 8 9 Avg Prop Armor Cover (%) . | . . . . Naked Turns . | . . . . Heaviest Build 58 | 13 19 54 58 Greatest Support 40 | 40 40 40 40 Greatest Overweight (x) 5 | 3 . 1 5 Average Overweight (x) . | . . . 1 Largest Inventory Capacity 20 | 8 8 20 20 Average Capacity 16 | 7 8 19 20 Most Carried 20 | 5 7 9 20 Average Carried 9 | 3 5 8 12 Final Capacity 20 | 8 8 20 20 Final Carried 19 | 3 7 9 19 Class Distribution -------------------- 53% | Mutant 24% | Tank 22% | Gunner Dominant Class ---------------- Mutant | -10/Materials Mutant | -10/Mines Tank | -9/Materials Resources | -11 -10 -10 -9 ----------- Run | Yrd Mat Min Mat Matter Collected 565 | 273 23 . 269 Remotely . | . . . . Salvage Created 732 | 42 94 . 596 Parts 59 | 8 3 . 48 Haulers Intercepted . | . . . . Recyclers Shooed 1 | . . . 1 Parts Field Recycled . | . . . . Retrieved Matter . | . . . . Parts Self-Destructed . | . . . . Prevented . | . . . . Parts Restored . | . . . . Kills | -11 -10 -10 -9 ------- Run | Yrd Mat Min Mat Combat Hostiles Destroyed 16 | . 2 . 14 Guns 14 | . 2 . 12 AOE 2 | . . . 2 Classes Destroyed 5 | 1 1 . 3 Builder 2 | . . . 2 Tunneler 2 | 2 . . . Grunt 13 | . 2 . 11 Duelist 1 | . . . 1 Sentry 2 | . . . 2 Best Kill Streak 6 | 2 1 . 6 Combat Bots Only 5 | . 1 . 5 Max Kills in Single Turn 2 | 1 1 . 2 Gunslinging . | . . . . Exploded 1 | . . . 1 Melee . | . . . . Uniques/NPCs Destroyed . | . . . . Combat | -11 -10 -10 -9 -------- Run | Yrd Mat Min Mat Hostile Shots Fired 107 | . 14 . 93 Missed 31 | . 3 . 28 Hits 76 | . 11 . 65 Melee 5 | . . . 5 Projectile 71 | . 11 . 60 Critical Strikes 6 | . 1 . 5 Damage Taken 1439 | . 165 . 1274 Core 418 | . 14 . 404 Absorbed by Shields . | . . . . Core Remaining (%) 97 | 100 . 94 . Volleys Fired 66 | 3 13 . 50 Largest 3 | 2 2 . 3 Hottest 100 | 60 60 . 100 Shots Fired 148 | 6 26 . 116 Gun 146 | 6 26 . 114 Cannon . | . . . . Launcher 2 | . . . 2 Special . | . . . . Kinetic 67 | 3 13 . 51 Thermal 50 | 3 13 . 34 Explosive 2 | . . . 2 Electromagnetic 29 | . . . 29 Robot Hit Streak 10 | 4 7 . 10 Robot Miss Streak 3 | . 1 . 3 Penetration Max . | . . . . Secondary Targets 4 | . . . 4 Max Gunslinging Chain 1 | . . . 1 Shots Hit Robots 103 | 4 19 . 80 Core Hits 41 | 2 9 . 30 Critical Kills . | . . . . Critical Parts Destroyed 1 | . . . 1 Critical Strikes 2 | . . . 2 Destroy 1 | . . . 1 Corrupt 1 | . . . 1 Melee Attacks . | . . . . Impact . | . . . . Slashing . | . . . . Piercing . | . . . . Sneak Attacks . | . . . . Combat Hostiles . | . . . . Follow-up Attacks . | . . . . Damage Inflicted 1543 | 43 183 . 1317 Guns 1243 | 43 178 . 1022 Cannons . | . . . . Explosions 290 | . . . 290 Melee . | . . . . Ramming 10 | . 5 . 5 Kinetic 582 | 10 89 . 483 Thermal 576 | 33 89 . 454 Explosive 142 | . . . 142 Electromagnetic 233 | . . . 233 Impact . | . . . . Slashing . | . . . . Piercing . | . . . . Highest Corruption 5 | . . . 5 Average Corruption 5 | . . . 5 Corruption Purged . | . . . . Corruption Blocked . | . . . . Effects 9 | . . . 9 Message Errors 4 | . . . 4 Matter Fused 3 | . . . 3 Energy Discharges 1 | . . . 1 Parts Rejected 1 | . . . 1 Overload Shots . | . . . . Overflow Damage 11 | . . . 11 Projectiles . | . . . . Explosions 11 | . . . 11 Melee . | . . . . Knockbacks . | . . . . Impact . | . . . . Kinetic . | . . . . Secondary . | . . . . Self-Inflicted Damage 75 | . . . 75 Shots 3 | . . . 3 Rammed 1 | . 1 . . Targets Rammed 2 | . 1 . 1 Kicked 1 | . . . 1 Crushed . | . . . . Highest Temperature 457 | 20 264 . 457 Average Temperature 120 | 13 118 . 124 Received Heat Transfer 564 | . 114 . 450 Effects 6 | . . . 6 Shutdowns 1 | . . . 1 Energy Bleed 1 | . . . 1 Interference 2 | . . . 2 Damage (minor) 2 | . . . 2 Siege Activations . | . . . . Martial Activations . | . . . . Shielding Activations . | . . . . Robots Disrupted . | . . . . Combat Hostiles . | . . . . Robots Corrupted . | . . . . Combat Hostiles . | . . . . Parts Fried . | . . . . Impact Corruptions . | . . . . Robots Melted . | . . . . Combat Hostiles . | . . . . Parts Melted 1 | . . . 1 Heat Transferred 1181 | 75 200 . 906 Parts Sabotaged . | . . . . Parts Stolen . | . . . . Parts Stripped . | . . . . Power Chain Reactions 1 | . . . 1 Alert | -11 -10 -10 -9 ------- Run | Yrd Mat Min Mat Maximum Alert Level . | . . . . Low Security (%) 100 | 100 100 100 100 Level 1 . | . . . . Level 2 . | . . . . Level 3 . | . . . . Level 4 . | . . . . Level 5 . | . . . . High Security . | . . . . Max Security . | . . . . Peak Influence 106 | 10 55 5 106 Initial 5 | . . 5 . Average 24 | . 18 . 38 Influence Increases 482 | 10 75 . 397 Destroy 0b10 Robot/C 320 | . 40 . 280 Destroy 0b10 Robot/NC 20 | 10 . . 10 Destroy Leader 80 | . 20 . 60 Successful Hack 5 | . . . 5 Disable Machine 15 | . . . 15 Destroy Structure 12 | . . . 12 Lose Combat Pursuer 30 | . 15 . 15 Influence Decreases 381 | 10 60 15 296 Entered New Map 10 | . . 10 . Time Decay 298 | 10 60 5 223 Lost Part 73 | . . . 73 Squads Dispatched 3 | . 1 . 2 Investigation 2 | . . . 2 Extermination . | . . . . Reinforcement 1 | . 1 . . Assault . | . . . . Garrison . | . . . . Intercept . | . . . . Searches Triggered . | . . . . Construction Impeded . | . . . . Haulers Reinforced . | . . . . Active Scanning Responses . | . . . . Cargo Convoy Interrupts . | . . . . Stealth | -11 -10 -10 -9 --------- Run | Yrd Mat Min Mat Distress Signals . | . . . . Communications Jammed . | . . . . Distress Signals . | . . . . Times Spotted 29 | . 4 . 25 Peak Tracking Total 5 | . 3 . 5 Tactical Retreats 2 | . 1 . 1 Traps | -11 -10 -10 -9 ------- Run | Yrd Mat Min Mat Traps Triggered 1 | . . . 1 Indirectly . | . . . . Trap Hack Attempts . | . . . . Triggered . | . . . . Disarmed . | . . . . Reprogrammed . | . . . . Reused . | . . . . Traps Extracted . | . . . . Installed . | . . . . Triggered . | . . . . Machines | -11 -10 -10 -9 ---------- Run | Yrd Mat Min Mat Machines Disabled 1 | . . . 1 Max in Single Turn 1 | . . . 1 Machines Repaired . | . . . . Machines Dismantled . | . . . . Machines Sabotaged . | . . . . Overloaded Fab Kills . | . . . . Hacking | -11 -10 -10 -9 --------- Run | Yrd Mat Min Mat Machines Accessed 1 | . . . 1 Terminals . | . . . . Fabricators . | . . . . Repair Stations . | . . . . Recycling Units . | . . . . Scanalyzers 1 | . . . 1 Garrison Access . | . . . . Total Hacks 15 | . . . 15 Successful 15 | . . . 15 Failed . | . . . . Catastrophic . | . . . . Database Lockouts . | . . . . Manual . | . . . . Terminals . | . . . . Fabricators . | . . . . Repair Stations . | . . . . Recycling Units . | . . . . Scanalyzers 15 | . . . 15 Garrison Access . | . . . . Terminal Hacks . | . . . . Fabricator Hacks . | . . . . Repair Station Hacks . | . . . . Recycling Unit Hacks . | . . . . Scanalyzer 15 | . . . 15 Insert Component 5 | . . . 5 Analyze 6 | . . . 6 Retrieve Study 4 | . . . 4 Garrison Access Hacks . | . . . . Unauthorized Hacks . | . . . . Terminals . | . . . . Fabricators . | . . . . Repair Stations . | . . . . Recycling Units . | . . . . Scanalyzers . | . . . . Garrison Access . | . . . . Data Cores Recovered . | . . . . Used . | . . . . Hacking Detections 1 | . . . 1 Full Trace Events . | . . . . Feedback Events . | . . . . Feedback Blocked . | . . . . Robot Schematics Acquired . | . . . . Robots Built . | . . . . Authchips . | . . . . Time . | . . . . Total Robot Build Rating . | . . . . Part Schematics Acquired 5 | . . . 5 Parts Built . | . . . . Authchips . | . . . . Time . | . . . . Total Part Build Rating . | . . . . Part Studies Acquired 4 | . . . 4 Parts Repaired . | . . . . Time . | . . . . Parts Recycled . | . . . . Recycled Matter . | . . . . Retrieved Matter . | . . . . Retrieved Components . | . . . . Parts Scanalyzed 5 | . . . 5 Part Schematics Acquired 5 | . . . 5 Parts Damaged . | . . . . Bothacking | -11 -10 -10 -9 ------------ Run | Yrd Mat Min Mat Used RIF Installer . | . . . . Robots Hacked . | . . . . Non-combat . | . . . . Combat . | . . . . Robot Hacks Applied . | . . . . Relay Couplers Released . | . . . . Fabnet Peak Effective % . | . . . . Robots Rewired . | . . . . Allies Hacked . | . . . . Hacks Repelled . | . . . . Allies | -11 -10 -10 -9 -------- Run | Yrd Mat Min Mat Total Allies . | . . . . Largest Group . | . . . . Highest-Rated Group . | . . . . Highest-Rated Ally . | . . . . Total Orders . | . . . . Ally Attacks . | . . . . Total Damage . | . . . . Kills . | . . . . Allies Corrupted . | . . . . Allies Melted . | . . . . Intel | -11 -10 -10 -9 ------- Run | Yrd Mat Min Mat Active Infowar (turns) 36 | 1 35 . . Terrain 36 | 1 35 . . Robot Analysis Total . | . . . . Derelict Logs Recovered 1 | . . 1 . Drone Launches . | . . . . Drone Recoveries . | . . . . Exploration | -11 -10 -10 -9 ------------- Run | Yrd Mat Min Mat Turns Passed 1326 | 74 247 292 713 Spaces Moved 532 | 38 125 125 244 Core 19 | 19 . . . Treads 282 | 19 125 125 13 Legs 231 | . . . 231 Wheels . | . . . . Hover . | . . . . Flight . | . . . . Fastest Speed 50 | 50 160 160 175 Average Speed 187 | 131 160 232 188 Slowest Speed 455 | 200 160 240 455 Overloaded Moves . | . . . . Propulsion Burnouts . | . . . . Robots Hopped . | . . . . Potential Cave-ins . | . . . . Cave-ins Triggered 1 | . . . 1 Exploration Rate (%) 23 | 3 28 38 23 Regions Visited 3 Branch Regions 1 Pre-discovered Areas . | . . . . Known Exits Taken . | . . . . Unknown Exits Taken 3 | 1 1 1 . Scrap Searched 1 | . . 1 . Spaces Dug . | . . . . Terrain Destroyed 12 | . . . 12 Melee . | . . . . Projectile . | . . . . AOE 12 | . . . 12 Terrain Rammed . | . . . . Walls Destroyed . | . . . . Machines Disabled . | . . . . Actions | -11 -10 -10 -9 --------- Run | Yrd Mat Min Mat Total 738 | 55 148 127 408 Wait 73 | 1 5 . 67 Move 529 | 37 124 124 244 Hop . | . . . . Pick Up 40 | 7 4 2 27 Fast Attach 3 | 3 . . . Attach 19 | 4 . . 15 Detach . | . . . . Swap 2 | . 1 1 . Drop 4 | . . . 4 Fire 66 | 3 13 . 50 Melee . | . . . . Ram . | . . . . Kick 1 | . . . 1 Crush 1 | . 1 . . Escape Stasis . | . . . . Rewire . | . . . . Trap . | . . . . Miscellaneous . | . . . . Route ------- -11/Scrapyard -10/Materials -10/Mines (discovered 2 exits: *Mat / Sub) -9/Materials History --------- Turn | Location | Event 7 | -11/Scrapyard | Discovered new exit (range 15) 75 | -11/Scrapyard | Entered Materials 259 | -10/Materials | Discovered new exit (range 7) 302 | -10/Materials | Build established: Mutant 322 | -10/Materials | Entered Mines 390 | -10/Mines | Identified exit to Subcaves 500 | -10/Mines | Received a Rocket Launcher from a helpful Derelict 585 | -10/Mines | Discovered new exit (range 12) 601 | -10/Mines | Assembled infested the area 614 | -10/Mines | Entered Materials 614 | -9/Materials | Evolved 2 slots: Propulsion x1, Weapon x1 918 | -9/Materials | Build established: Tank 959 | -9/Materials | Crushed by falling debris 959 | -9/Materials | Core integrity fell below 50% 995 | -9/Materials | Lost 7 parts (2p2n1u2w) 999 | -9/Materials | Core integrity fell below 20% 1327 | -9/Materials | Destroyed by G-34 Mercenary with Small Laser Last Messages --------------- 01266_ Dropped Sml. Laser. 01268_ K-01 Serf collects debris. 01269_ Acquired Adv. Targeting Computer. 01271_ K-01 Serf collects debris. 01313_ Y-45 Defender destroyed. 01315_ C-30 ARC bursts open, deploying its payload. 01315_ G-47 Trooper unfolds itself. 01315_ G-34 Mercenary unfolds itself. 01316_ K-01 Serf collects debris. 01322_ G-34 Mercenary suffers critical hit (Destroy). 01322_ Destroyed Ion Engine. 01322_ K-01 Serf collects debris. 01324_ 92 Map ----- +----------------------------------------------------+ | ?????????????????????????????????????????????????? | | ?????????????????????????????????????????????????? | | ?????????????????????????????????????????????????? | | ?????????????????????????????????????????????????? | | ?????????????????????????????????????????????????? | | ?????????????????????????????????????????????????? | | ?????????????????????????????????????????????????? | | ????????????????????????? ?????????????????????? | | ???????????????????????? ?????????????????????? | | ???????????????????????? #????????????????????? | | ????????????????????????#u #????????????????????? | | ????????????????????????# #????????????????????? | | ????????????????????????+% +????????????????????? | | ????????????????????????#k #????????????????????? | | ????????????????????????#kg #????????????????????? | | ????????????????????????#g%=#????????????????????? | | ????????????????????????# ! #????????????????????? | | ????????????????????????# #????????????????????? | | ????????????????????????#[ ##########???????????? | | ????????????????????????#%! # #???????????? | | ??????????????#######???#[ # #???????????? | | ??????????????# ##### # #???????????? | | ??????????????#! %=#[ """ #???????????? | | ??????????????# %+ """ #???????????? | | ??????????????# #= """ #???????????? | | ??????????????# # @ ## """ #???????????? | | ??????????????####### [ ## """ #???????????? | | ????????????????????#! ![ !## #???????????? | | ????????????????????#!!!!!!#####+############????? | | ????????????????????########???# ## #????? | | ???????????????????????????????# ## #????? | | #############+################## ## #????? | | # #????? | | + #????? | | "" [ # #????? | | ######### "T # #????? | | #?????# "" """ """ """ # #????? | | #?????# * "" """ """ ###########????? | | #?????# = " """ """ ###############? | | ####### !!![= ! | | + =!!=/%*[% | | ########### ##+##! | | #???????# !%==# ########################?? | | #???????# ! #######????????????????????????? | | #???????# = #????????????????????????????? | | ###???????# ##????????????????????????????? | | ??????????# ##?????????????????????????????? | | ??????????#########??????????????????????????????? | | | | | +----------------------------------------------------+ Best States ------------- Heat Dissipation 28 Energy Generation 12 Energy Capacity 415 Matter Stores 300 Matter Capacity 300 Sight Range 16 Terrain Scan Range 16 Terrain Scan Density 10 Armor Coverage 225 Evasion (%) 50 Recoil Reduction 2 Item Schematics ----------------- Sml. Storage Unit | -9/Materials | Scanalyzed Lgt. Ion Engine | -9/Materials | Scanalyzed Rocket Launcher | -9/Materials | Scanalyzed Grenade Launcher | -9/Materials | Scanalyzed Autogun | -9/Materials | Scanalyzed Robot Schematics ------------------ None Fabricated ------------ Nothing Repaired ---------- Nothing Studied --------- Ion Engine | -9/Materials | Hacked Aluminum Leg | -9/Materials | Hacked Grenade Launcher | -9/Materials | Hacked Autogun | -9/Materials | Hacked Alien Tech Used ----------------- None Achievements -------------- None Challenges ------------ None Game ------ Seed WaveOpticalSuperbattery Manual? 0 Play Time 00:20:00 Cumulative 56.1 hours Start 2026.06.27 @ 21:11:25 End 2026.06.27 @ 21:39:15 Sessions 1 Manual Loads 0 Difficulty Rogue Special Mode None Game No. 105 Rogue 93 Adventurer 12 Explorer 0 Win Type - Total 0 Types 0/0/0/0/0/0/0/0/0/0 Lore% 10 Gallery% 22 Achievement% 14 Wizard Run 0 Options --------- Layout 2 ASCII 0 Keyboard 0 Movement Mouse Keybinds 0 Fullscreen 2 Font 24/Proggy Map View 50x44 Zoom Use 1% Tactical HUD 1 Map Filters NONE Filters NONE Steam 1 RUN: 7cc0d312-9ca7-4d95-93c3-821792eb2147